[Event "Czech Open-E Teams 2022"]
[Site "Pardubice"]
[Date "2022.07.16"]
[Round "5.31"]
[White "Zelbova, Lada"]
[Black "Vitak, Jiri"]
[Result "1-0"]
[ECO "A43"]
[WhiteElo "1898"]
[BlackElo "2223"]
[Annotator "ChessBase"]
[PlyCount "55"]
[EventDate "2022.07.14"]
[EventType "team-tourn"]
[EventCountry "CZE"]
[SourceTitle "playchess.com"]
[Source "ChessBase"]
[SourceQuality "1"]
[TimeControl "5400+30"]

1. d4 {[%emt 0:00:03]} Nf6 {[%emt 0:00:18]} 2. Nf3 {[%emt 0:00:06]} c5 {[%emt 0:01:33]} 3. d5 {[%emt 0:03:09]} e6 {[%emt 0:00:10]} 4. Nc3 {[%emt 0:01:17]} exd5 {[%emt 0:07:40]} 5. Nxd5 {[%emt 0:00:35]} Nxd5 {[%emt 0:01:08]} 6. Qxd5 {[%emt 0:00:06]} d6 {[%emt 0:00:16]} 7. Bf4 {[%emt 0:34:44]} Nc6 {[%emt 0:10:34]} 8. Ng5 {[%emt 0:15:48]} Qf6 {[%emt 0:11:35]} 9. e3 {[%emt 0:02:03]} Be6 {[%emt 0:01:06]} 10. Nxe6 {[%emt 0:00:35]} fxe6 {[%emt 0:00:42]} 11. Qb3 {[%emt 0:00:28]} O-O-O {[%emt 0:00:38]} 12. O-O-O {[%emt 0:07:20]} d5 {[%emt 0:15:36]} 13. Bb5 {[%emt 0:02:23]} Nb8 {[%emt 0:05:14]} 14. h4 {[%emt 0:04:15]} Be7 {[%emt 0:03:25]} 15. Bxb8 {[%emt 0:04:04]} Kxb8 {[%emt 0:00:05]} 16. Bc6 {[%emt 0:00:13]} b6 {[%emt 0:00:36]} 17. e4 {[%emt 0:02:30]} d4 {[%emt 0:16:22]} 18. Kb1 {[%emt 0:06:17]} Rhf8 {[%emt 0:08:29]} 19. e5 {[%emt 0:01:26]} Qxe5 {[%emt 0:01:41]} 20. Rhe1 {[%emt 0:01:05]} Qc7 {[%emt 0:00:12]} 21. Rxe6 {[%emt 0:02:25]} Rd6 {[%emt 0:08:05]} 22. Rde1 {[%emt 0:06:50]} Rxe6 {[%emt 0:05:05]} 23. Qxe6 {[%emt 0:00:51]} Bf6 {[%emt 0:00:50]} 24. Bf3 {[%emt 0:01:10]} a6 {[%emt 0:00:14]} 25. Qd5 {[%emt 0:00:37]} Ka7 {[%emt 0:00:24]} 26. Re6 {[%emt 0:01:33]} Rd8 {[%emt 0:00:34]} 27. Qe4 {[%emt 0:00:09]} Qb8 {[%emt 0:00:51]} 28. Re7+ {[%emt 0:00:50]} 1-0

[Event "Czech Open-E Teams 2022"]
[Site "Pardubice"]
[Date "2022.07.16"]
[Round "5.32"]
[White "Sykora, Marek"]
[Black "Kabelka, Ondrej"]
[Result "1-0"]
[ECO "C02"]
[WhiteElo "2240"]
[BlackElo "2014"]
[Annotator "ChessBase"]
[PlyCount "107"]
[EventDate "2022.07.14"]
[EventType "team-tourn"]
[EventCountry "CZE"]
[SourceTitle "playchess.com"]
[Source "ChessBase"]
[SourceQuality "1"]
[TimeControl "5400+30"]

1. e4 {[%emt 0:00:05]} e6 {[%emt 0:00:47]} 2. d4 {[%emt 0:00:26]} d5 {[%emt 0:00:16]} 3. e5 {[%emt 0:00:26]} c5 {[%emt 0:00:12]} 4. c3 {[%emt 0:00:07]} Qb6 {[%emt 0:02:22]} 5. Nf3 {[%emt 0:00:11]} Bd7 {[%emt 0:00:06]} 6. Be2 {[%emt 0:01:31]} Bb5 {[%emt 0:10:25]} 7. O-O {[%emt 0:00:38]} Bxe2 {[%emt 0:00:42]} 8. Qxe2 {[%emt 0:00:08]} Nc6 {[%emt 0:00:04]} 9. Be3 {[%emt 0:05:26]} Nh6 {[%emt 0:04:19]} 10. dxc5 {[%emt 0:07:06]} Bxc5 {[%emt 0:07:52]} 11. Bxh6 {[%emt 0:00:14]} gxh6 {[%emt 0:00:03]} 12. b4 {[%emt 0:00:15]} Bf8 {[%emt 0:02:02]} 13. a3 {[%emt 0:02:52]} Bg7 {[%emt 0:00:32]} 14. Nbd2 {[%emt 0:00:48]} O-O {[%emt 0:01:21]} 15. Rac1 {[%emt 0:03:45]} Rac8 {[%emt 0:05:44]} 16. Rfe1 {[%emt 0:10:41]} Rfd8 {[%emt 0:16:38]} 17. h3 {[%emt 0:04:47]} Ne7 {[%emt 0:05:54]} 18. Nd4 {[%emt 0:06:56]} Ng6 {[%emt 0:01:52]} 19. N2f3 {[%emt 0:00:36]} Rc4 {[%emt 0:01:09]} 20. h4 {[%emt 0:01:30]} Rdc8 {[%emt 0:08:43]} 21. h5 {[%emt 0:04:17]} Ne7 {[%emt 0:00:55]} 22. Qd3 {[%emt 0:01:41]} Nc6 {[%emt 0:01:59]} 23. Nd2 {[%emt 0:19:42]} Nxe5 {[%emt 0:10:05]} 24. Qg3 {[%emt 0:00:07]} Nd7 {[%emt 0:03:12]} 25. Nxc4 {[%emt 0:00:25]} Rxc4 {[%emt 0:00:02]} 26. a4 {[%emt 0:10:03]} Nf6 {[%emt 0:02:57]} 27. a5 {[%emt 0:00:21]} Qd8 {[%emt 0:01:13]} 28. Qf3 {[%emt 0:04:03]} Ne4 {[%emt 0:01:22]} 29. Red1 {[%emt 0:00:49]} Qh4 {[%emt 0:02:48]} 30. g3 {[%emt 0:03:52]} Qg5 {[%emt 0:01:19]} 31. Rc2 {[%emt 0:00:20]} Qe5 {[%emt 0:03:25]} 32. Rd3 {[%emt 0:04:03]} Ng5 {[%emt 0:01:02]} 33. Qe2 {[%emt 0:02:29]} Ne4 {[%emt 0:02:05]} 34. Kg2 {[%emt 0:02:24]} a6 {[%emt 0:01:33]} 35. Qf3 {[%emt 0:02:49]} Qc7 {[%emt 0:00:30]} 36. Ne2 {[%emt 0:00:38]} Rxb4 {[%emt 0:00:45]} 37. cxb4 {[%emt 0:00:16]} Qxc2 {[%emt 0:00:01]} 38. Qe3 {[%emt 0:01:13]} Qc4 {[%emt 0:01:00]} 39. f3 {[%emt 0:00:48]} Nd6 {[%emt 0:00:30]} 40. Qd2 {[%emt 0:00:44]} Nf5 {[%emt 0:00:53]} 41. g4 {[%emt 0:00:35]} Ne7 {[%emt 0:01:14]} 42. Nd4 {[%emt 0:00:18]} Nc6 {[%emt 0:00:22]} 43. Nxc6 {[%emt 0:00:36]} Qxc6 {[%emt 0:00:09]} 44. Rb3 {[%emt 0:00:34]} d4 {[%emt 0:01:26]} 45. Qd3 {[%emt 0:00:06]} Be5 {[%emt 0:00:38]} 46. Qe4 {[%emt 0:01:04]} Qd6 {[%emt 0:00:22]} 47. Rd3 {[%emt 0:00:42]} Bh2 {[%emt 0:00:38]} 48. Qxd4 {[%emt 0:00:30]} Qg3+ {[%emt 0:00:13]} 49. Kf1 {[%emt 0:00:07]} e5 {[%emt 0:00:41]} 50. Qf2 {[%emt 0:00:08]} Qf4 {[%emt 0:00:02]} 51. Kg2 {[%emt 0:00:23]} Kg7 {[%emt 0:00:49]} 52. Rd1 {[%emt 0:01:14]} f5 {[%emt 0:00:45]} 53. Rh1 {[%emt 0:00:18]} fxg4 {[%emt 0:00:26]} 54. Rxh2 {[%emt 0:00:07]} 1-0

[Event "Czech Open-E Teams 2022"]
[Site "Pardubice"]
[Date "2022.07.16"]
[Round "5.33"]
[White "Petr, Martin"]
[Black "Walek, Petr"]
[Result "1-0"]
[ECO "A48"]
[WhiteElo "2500"]
[BlackElo "2237"]
[Annotator "ChessBase"]
[PlyCount "81"]
[EventDate "2022.07.14"]
[EventType "team-tourn"]
[EventCountry "CZE"]
[SourceTitle "playchess.com"]
[Source "ChessBase"]
[SourceQuality "1"]
[TimeControl "5400+30"]

1. Nf3 {[%emt 0:00:08]} g6 {[%emt 0:00:44]} 2. d4 {[%emt 0:03:41]} Nf6 {[%emt 0:00:19]} 3. c4 {[%emt 0:03:31]} Bg7 {[%emt 0:00:18]} 4. Nc3 {[%emt 0:00:07]} O-O {[%emt 0:00:22]} 5. e3 {[%emt 0:00:35]} c5 {[%emt 0:09:10]} 6. Be2 {[%emt 0:02:58]} cxd4 {[%emt 0:04:33]} 7. exd4 {[%emt 0:00:35]} d5 {[%emt 0:00:06]} 8. O-O {[%emt 0:00:21]} Nc6 {[%emt 0:08:19]} 9. h3 {[%emt 0:04:05]} h6 {[%emt 0:08:21]} 10. Be3 {[%emt 0:02:08]} Be6 {[%emt 0:02:46]} 11. b3 {[%emt 0:09:58]} Rc8 {[%emt 0:14:50]} 12. Rc1 {[%emt 0:01:18]} Na5 {[%emt 0:03:42]} 13. c5 {[%emt 0:00:54]} Ne4 {[%emt 0:07:14]} 14. Ne5 {[%emt 0:03:49]} Nc6 {[%emt 0:09:16]} 15. Nxc6 {[%emt 0:03:56]} Rxc6 {[%emt 0:00:11]} 16. b4 {[%emt 0:02:11]} f5 {[%emt 0:02:23]} 17. Bf4 {[%emt 0:06:44]} g5 {[%emt 0:02:08]} 18. Be5 {[%emt 0:00:14]} f4 {[%emt 0:05:19]} 19. Bf3 {[%emt 0:03:06]} Bf5 {[%emt 0:05:29]} 20. Bxg7 {[%emt 0:00:21]} Kxg7 {[%emt 0:01:29]} 21. Re1 {[%emt 0:00:47]} Nxc3 {[%emt 0:02:41]} 22. Rxc3 {[%emt 0:00:06]} Rcf6 {[%emt 0:00:29]} 23. b5 {[%emt 0:04:07]} b6 {[%emt 0:07:41]} 24. c6 {[%emt 0:01:44]} Qc7 {[%emt 0:01:02]} 25. Bxd5 {[%emt 0:01:15]} Rd8 {[%emt 0:02:06]} 26. Bf3 {[%emt 0:01:23]} Rfd6 {[%emt 0:00:47]} 27. d5 {[%emt 0:00:09]} e6 {[%emt 0:00:45]} 28. Qd4+ {[%emt 0:00:56]} Kg6 {[%emt 0:00:23]} 29. Qe5 {[%emt 0:04:02]} exd5 {[%emt 0:01:06]} 30. Bxd5 {[%emt 0:00:16]} Qg7 {[%emt 0:00:54]} 31. Bf3 {[%emt 0:04:56]} Qxe5 {[%emt 0:00:33]} 32. Rxe5 {[%emt 0:00:02]} Kf6 {[%emt 0:00:19]} 33. Rxf5+ {[%emt 0:00:22]} Kxf5 {[%emt 0:00:05]} 34. c7 {[%emt 0:00:04]} Re8 {[%emt 0:01:04]} 35. c8=Q+ {[%emt 0:00:18]} Rxc8 {[%emt 0:00:04]} 36. Rxc8 {[%emt 0:00:05]} Rd2 {[%emt 0:00:04]} 37. Rc6 {[%emt 0:01:57]} Rxa2 {[%emt 0:00:14]} 38. Rxh6 {[%emt 0:00:09]} Rb2 {[%emt 0:01:20]} 39. Bg4+ {[%emt 0:00:36]} Ke4 {[%emt 0:00:10]} 40. Re6+ {[%emt 0:00:06]} Kd4 {[%emt 0:01:05]} 41. Be2 {[%emt 0:00:43]} 1-0

[Event "Czech Open-E Teams 2022"]
[Site "Pardubice"]
[Date "2022.07.16"]
[Round "5.34"]
[White "Kratochvil, Vit"]
[Black "Neuman, Petr"]
[Result "0-1"]
[ECO "A10"]
[WhiteElo "2237"]
[BlackElo "2378"]
[Annotator "ChessBase"]
[PlyCount "96"]
[EventDate "2022.07.14"]
[EventType "team-tourn"]
[EventCountry "CZE"]
[SourceTitle "playchess.com"]
[Source "ChessBase"]
[SourceQuality "1"]
[TimeControl "5400+30"]

1. c4 {[%emt 0:00:09]} d6 {[%emt 0:00:14]} 2. g3 {[%emt 0:01:23]} e5 {[%emt 0:00:26]} 3. Bg2 {[%emt 0:00:25]} g6 {[%emt 0:00:23]} 4. d4 {[%emt 0:08:00]} Nd7 {[%emt 0:01:48]} 5. Nf3 {[%emt 0:01:08]} Bg7 {[%emt 0:00:35]} 6. Nc3 {[%emt 0:01:54]} Ngf6 {[%emt 0:00:20]} 7. O-O {[%emt 0:07:52]} O-O {[%emt 0:00:07]} 8. Qc2 {[%emt 0:03:04]} c6 {[%emt 0:06:21]} 9. Rd1 {[%emt 0:02:26]} Re8 {[%emt 0:01:09]} 10. Rb1 {[%emt 0:12:21]} a5 {[%emt 0:08:46]} 11. a3 {[%emt 0:06:36]} e4 {[%emt 0:15:03]} 12. Ng5 {[%emt 0:07:13]} e3 {[%emt 0:04:41]} 13. Bxe3 {[%emt 0:19:40]} Rxe3 {[%emt 0:01:41]} 14. fxe3 {[%emt 0:00:35]} Ng4 {[%emt 0:00:09]} 15. Nge4 {[%emt 0:06:30]} Nxe3 {[%emt 0:00:36]} 16. Qd2 {[%emt 0:03:17]} Nxd1 {[%emt 0:00:20]} 17. Rxd1 {[%emt 0:00:04]} Nb6 {[%emt 0:05:20]} 18. c5 {[%emt 0:05:42]} Nc4 {[%emt 0:01:35]} 19. Qc1 {[%emt 0:00:34]} d5 {[%emt 0:12:01]} 20. b3 {[%emt 0:05:15]} dxe4 {[%emt 0:00:15]} 21. bxc4 {[%emt 0:00:04]} f5 {[%emt 0:00:18]} 22. e3 {[%emt 0:00:32]} a4 {[%emt 0:00:40]} 23. Qc2 {[%emt 0:02:18]} b6 {[%emt 0:07:31]} 24. Nxa4 {[%emt 0:03:46]} bxc5 {[%emt 0:00:08]} 25. dxc5 {[%emt 0:01:21]} Qf8 {[%emt 0:00:18]} 26. Nb6 {[%emt 0:00:47]} Rxa3 {[%emt 0:00:58]} 27. Rd6 {[%emt 0:00:27]} Be5 {[%emt 0:01:23]} 28. Rxc6 {[%emt 0:00:30]} Bb7 {[%emt 0:00:43]} 29. Nd7 {[%emt 0:00:32]} Qe7 {[%emt 0:04:25]} 30. Nxe5 {[%emt 0:00:24]} Bxc6 {[%emt 0:00:42]} 31. Nxc6 {[%emt 0:00:01]} Qxc5 {[%emt 0:00:11]} 32. Qb2 {[%emt 0:00:59]} Qxe3+ {[%emt 0:03:39]} 33. Qf2 {[%emt 0:00:09]} Qxf2+ {[%emt 0:02:40]} 34. Kxf2 {[%emt 0:00:02]} Ra2+ {[%emt 0:00:07]} 35. Kf1 {[%emt 0:00:06]} Rc2 {[%emt 0:00:39]} 36. Ne5 {[%emt 0:01:49]} Kg7 {[%emt 0:00:06]} 37. g4 {[%emt 0:00:26]} Kf6 {[%emt 0:00:20]} 38. Nd7+ {[%emt 0:00:26]} Kg5 {[%emt 0:01:03]} 39. gxf5 {[%emt 0:00:12]} gxf5 {[%emt 0:00:05]} 40. Nb6 {[%emt 0:00:35]} Kf4 {[%emt 0:00:51]} 41. Nd5+ {[%emt 0:00:46]} Ke5 {[%emt 0:00:06]} 42. Ne3 {[%emt 0:00:30]} Rc3 {[%emt 0:00:24]} 43. Kf2 {[%emt 0:00:16]} f4 {[%emt 0:01:37]} 44. Ng4+ {[%emt 0:00:11]} Kd4 {[%emt 0:00:08]} 45. Bf1 {[%emt 0:01:03]} Rc2+ {[%emt 0:00:26]} 46. Ke1 {[%emt 0:00:21]} f3 {[%emt 0:00:28]} 47. Nf2 {[%emt 0:00:38]} e3 {[%emt 0:00:26]} 48. Ng4 {[%emt 0:00:04]} Rc1# {[%emt 0:00:10]} 0-1

[Event "Czech Open-E Teams 2022"]
[Site "Pardubice"]
[Date "2022.07.16"]
[Round "5.35"]
[White "Wasserbauer, Radek"]
[Black "Ruzicka, Josef"]
[Result "1-0"]
[ECO "B91"]
[WhiteElo "2164"]
[BlackElo "2177"]
[Annotator "ChessBase"]
[PlyCount "63"]
[EventDate "2022.07.14"]
[EventType "team-tourn"]
[EventCountry "CZE"]
[SourceTitle "playchess.com"]
[Source "ChessBase"]
[SourceQuality "1"]
[TimeControl "5400+30"]

1. e4 {[%emt 0:00:02]} c5 {[%emt 0:00:06]} 2. Nf3 {[%emt 0:00:03]} d6 {[%emt 0:00:05]} 3. d4 {[%emt 0:00:03]} cxd4 {[%emt 0:00:05]} 4. Nxd4 {[%emt 0:00:03]} Nf6 {[%emt 0:00:06]} 5. Nc3 {[%emt 0:00:05]} a6 {[%emt 0:00:05]} 6. g3 {[%emt 0:02:10]} e5 {[%emt 0:00:26]} 7. Nb3 {[%emt 0:00:07]} Be6 {[%emt 0:02:16]} 8. Bg2 {[%emt 0:00:20]} Be7 {[%emt 0:00:36]} 9. O-O {[%emt 0:00:07]} Nbd7 {[%emt 0:04:49]} 10. Nd5 {[%emt 0:02:14]} Rc8 {[%emt 0:07:19]} 11. Be3 {[%emt 0:10:26]} Nxd5 {[%emt 0:03:16]} 12. exd5 {[%emt 0:00:05]} Bf5 {[%emt 0:00:11]} 13. Rc1 {[%emt 0:00:41]} Bg5 {[%emt 0:05:37]} 14. Re1 {[%emt 0:23:58]} Bxe3 {[%emt 0:02:31]} 15. Rxe3 {[%emt 0:00:04]} O-O {[%emt 0:00:22]} 16. c4 {[%emt 0:00:10]} Qb6 {[%emt 0:03:53]} 17. Qd2 {[%emt 0:01:56]} Rc7 {[%emt 0:09:56]} 18. Bf1 {[%emt 0:08:10]} Rfc8 {[%emt 0:07:12]} 19. Rd1 {[%emt 0:09:59]} Bg4 {[%emt 0:16:47]} 20. Rde1 {[%emt 0:04:57]} f5 {[%emt 0:06:40]} 21. h3 {[%emt 0:04:26]} Bh5 {[%emt 0:00:16]} 22. f4 {[%emt 0:00:40]} g5 {[%emt 0:12:53]} 23. Kh2 {[%emt 0:01:34]} h6 {[%emt 0:11:21]} 24. fxe5 {[%emt 0:02:38]} Nxe5 {[%emt 0:00:16]} 25. Rxe5 {[%emt 0:00:03]} dxe5 {[%emt 0:00:15]} 26. Rxe5 {[%emt 0:00:02]} Rxc4 {[%emt 0:03:19]} 27. Bxc4 {[%emt 0:04:04]} Rxc4 {[%emt 0:00:02]} 28. d6 {[%emt 0:00:34]} Bd1 {[%emt 0:02:41]} 29. Qd5+ {[%emt 0:02:01]} Kh8 {[%emt 0:01:02]} 30. Re8+ {[%emt 0:00:28]} Kg7 {[%emt 0:00:12]} 31. Qg8+ {[%emt 0:00:51]} Kf6 {[%emt 0:00:04]} 32. Re6# {[%emt 0:00:21]} 1-0

[Event "Czech Open-E Teams 2022"]
[Site "Pardubice"]
[Date "2022.07.16"]
[Round "5.36"]
[White "Kosut, Tomas"]
[Black "Cozl, David"]
[Result "1-0"]
[ECO "B12"]
[WhiteElo "1820"]
[BlackElo "1947"]
[Annotator "ChessBase"]
[PlyCount "53"]
[EventDate "2022.07.14"]
[EventType "team-tourn"]
[EventCountry "CZE"]
[SourceTitle "playchess.com"]
[Source "ChessBase"]
[SourceQuality "1"]
[TimeControl "5400+30"]

1. e4 {[%emt 0:00:04]} c6 {[%emt 0:00:06]} 2. d4 {[%emt 0:02:24]} d5 {[%emt 0:00:02]} 3. e5 {[%emt 0:01:17]} Bf5 {[%emt 0:00:03]} 4. c3 {[%emt 0:02:25]} e6 {[%emt 0:00:14]} 5. Bd3 {[%emt 0:05:29]} Bxd3 {[%emt 0:00:10]} 6. Qxd3 {[%emt 0:00:08]} c5 {[%emt 0:00:54]} 7. Nf3 {[%emt 0:02:13]} Nc6 {[%emt 0:00:10]} 8. O-O {[%emt 0:08:58]} Qc7 {[%emt 0:03:17]} 9. dxc5 {[%emt 0:23:39]} Bxc5 {[%emt 0:01:10]} 10. Bg5 {[%emt 0:05:30]} Nge7 {[%emt 0:05:46]} 11. Bxe7 {[%emt 0:09:51]} Bxe7 {[%emt 0:01:25]} 12. Nbd2 {[%emt 0:01:15]} O-O {[%emt 0:00:14]} 13. Rfe1 {[%emt 0:01:14]} Rac8 {[%emt 0:01:51]} 14. h4 {[%emt 0:08:33]} Qb6 {[%emt 0:07:20]} 15. Nb3 {[%emt 0:02:22]} a5 {[%emt 0:01:00]} 16. Rab1 {[%emt 0:07:24]} Rc7 {[%emt 0:05:35]} 17. Ng5 {[%emt 0:03:21]} g6 {[%emt 0:00:54]} 18. Qg3 {[%emt 0:03:54]} Rfc8 {[%emt 0:06:32]} 19. h5 {[%emt 0:00:56]} Bf8 {[%emt 0:08:06]} 20. hxg6 {[%emt 0:02:46]} hxg6 {[%emt 0:00:02]} 21. Qh3 {[%emt 0:01:13]} Bg7 {[%emt 0:00:44]} 22. Nxe6 {[%emt 0:03:45]} fxe6 {[%emt 0:03:19]} 23. Qxe6+ {[%emt 0:00:04]} Kh7 {[%emt 0:03:19]} 24. Re3 {[%emt 0:00:44]} Rf8 {[%emt 0:01:47]} 25. Rh3+ {[%emt 0:01:42]} Bh6 {[%emt 0:00:02]} 26. Nd4 {[%emt 0:00:38]} Qc5 {[%emt 0:01:18]} 27. Rxh6+ {[%emt 0:01:06]} 1-0

[Event "Czech Open-E Teams 2022"]
[Site "Pardubice"]
[Date "2022.07.16"]
[Round "5.38"]
[White "Volak, Simon"]
[Black "Postupa, Pavel"]
[Result "0-1"]
[ECO "B50"]
[WhiteElo "2082"]
[BlackElo "2235"]
[Annotator "ChessBase"]
[PlyCount "116"]
[EventDate "2022.07.14"]
[EventType "team-tourn"]
[EventCountry "CZE"]
[SourceTitle "playchess.com"]
[Source "ChessBase"]
[SourceQuality "1"]
[TimeControl "5400+30"]

1. e4 {[%emt 0:00:04]} c5 {[%emt 0:00:09]} 2. Nf3 {[%emt 0:00:06]} d6 {[%emt 0:00:03]} 3. c3 {[%emt 0:01:27]} Nf6 {[%emt 0:00:19]} 4. h3 {[%emt 0:00:07]} Nbd7 {[%emt 0:00:31]} 5. Bd3 {[%emt 0:00:35]} b6 {[%emt 0:00:06]} 6. O-O {[%emt 0:00:20]} Bb7 {[%emt 0:00:06]} 7. Re1 {[%emt 0:00:14]} Qc7 {[%emt 0:01:44]} 8. Bc2 {[%emt 0:01:38]} Rc8 {[%emt 0:00:06]} 9. d3 {[%emt 0:00:53]} e6 10. Nbd2 Be7 {[%emt 0:03:21]} 11. Nf1 {[%emt 0:02:44]} O-O {[%emt 0:01:17]} 12. Ng3 {[%emt 0:01:09]} Rfd8 {[%emt 0:00:14]} 13. Bf4 {[%emt 0:05:31]} b5 {[%emt 0:05:44]} 14. Rc1 {[%emt 0:03:25]} Nf8 {[%emt 0:15:05]} 15. Qe2 {[%emt 0:11:19]} Ng6 {[%emt 0:11:45]} 16. Bd2 {[%emt 0:01:14]} Qb8 {[%emt 0:02:16]} 17. Nh2 {[%emt 0:11:31]} d5 {[%emt 0:17:58]} 18. e5 {[%emt 0:02:41]} Nd7 {[%emt 0:00:03]} 19. d4 {[%emt 0:01:52]} cxd4 {[%emt 0:00:07]} 20. cxd4 {[%emt 0:00:05]} Rc4 {[%emt 0:00:09]} 21. Nf3 {[%emt 0:08:21]} Rdc8 {[%emt 0:10:53]} 22. Bd3 {[%emt 0:01:52]} Rxc1 {[%emt 0:00:25]} 23. Rxc1 {[%emt 0:00:15]} Rxc1+ {[%emt 0:00:19]} 24. Bxc1 {[%emt 0:00:05]} Qc7 {[%emt 0:00:04]} 25. Bd2 {[%emt 0:01:36]} b4 {[%emt 0:00:30]} 26. Ng5 {[%emt 0:09:09]} Qb6 {[%emt 0:03:06]} 27. Nf3 {[%emt 0:15:43]} b3 {[%emt 0:04:44]} 28. axb3 {[%emt 0:04:53]} Qxb3 {[%emt 0:00:07]} 29. Bc1 {[%emt 0:03:25]} Nb8 {[%emt 0:03:28]} 30. Bc2 {[%emt 0:06:12]} Qb6 {[%emt 0:00:21]} 31. Qd1 {[%emt 0:04:45]} Nc6 {[%emt 0:02:26]} 32. Ne2 {[%emt 0:01:51]} Na5 {[%emt 0:10:46]} 33. Nc3 {[%emt 0:01:11]} Bc6 {[%emt 0:01:38]} 34. Na4 {[%emt 0:00:38]} Qb8 {[%emt 0:03:10]} 35. Nc3 {[%emt 0:00:25]} Qb4 {[%emt 0:00:35]} 36. Na2 {[%emt 0:00:39]} Qb6 {[%emt 0:00:30]} 37. Nc3 {[%emt 0:00:27]} Nc4 {[%emt 0:00:08]} 38. b3 {[%emt 0:00:27]} Na5 {[%emt 0:00:28]} 39. Na4 {[%emt 0:00:24]} Bxa4 {[%emt 0:00:17]} 40. bxa4 {[%emt 0:00:05]} Nc4 {[%emt 0:00:04]} 41. Bb3 {[%emt 0:00:53]} Na5 {[%emt 0:00:41]} 42. Bc2 {[%emt 0:00:25]} Bb4 {[%emt 0:00:29]} 43. Bd2 {[%emt 0:00:49]} Bxd2 {[%emt 0:00:54]} 44. Qxd2 {[%emt 0:00:01]} Nc4 {[%emt 0:00:06]} 45. Qc1 {[%emt 0:00:57]} Nf8 {[%emt 0:01:50]} 46. Bd3 {[%emt 0:00:33]} Nb2 {[%emt 0:00:21]} 47. Bb5 {[%emt 0:00:19]} Nc4 {[%emt 0:02:52]} 48. Bxc4 {[%emt 0:00:10]} dxc4 {[%emt 0:00:01]} 49. Qxc4 {[%emt 0:00:14]} h6 {[%emt 0:00:10]} 50. Nd2 {[%emt 0:00:47]} Qb2 {[%emt 0:00:19]} 51. Nf3 {[%emt 0:00:49]} Ng6 {[%emt 0:00:04]} 52. g3 {[%emt 0:00:36]} Ne7 {[%emt 0:00:18]} 53. Kg2 {[%emt 0:00:30]} Nd5 {[%emt 0:00:01]} 54. Qc8+ {[%emt 0:00:35]} Kh7 {[%emt 0:00:01]} 55. g4 {[%emt 0:00:30]} Nf4+ {[%emt 0:01:03]} 56. Kg3 {[%emt 0:00:20]} Nd3 {[%emt 0:00:01]} 57. g5 {[%emt 0:00:40]} Qxf2+ {[%emt 0:00:12]} 58. Kg4 {[%emt 0:00:19]} h5+ {[%emt 0:00:06]} 0-1

[Event "Czech Open-E Teams 2022"]
[Site "Pardubice"]
[Date "2022.07.16"]
[Round "5.39"]
[White "Vokoun, Jan"]
[Black "Daniel, Jiri"]
[Result "1/2-1/2"]
[ECO "A56"]
[WhiteElo "2056"]
[BlackElo "1938"]
[Annotator "ChessBase"]
[PlyCount "41"]
[EventDate "2022.07.14"]
[EventType "team-tourn"]
[EventCountry "CZE"]
[SourceTitle "playchess.com"]
[Source "ChessBase"]
[SourceQuality "1"]
[TimeControl "5400+30"]

1. d4 Nf6 {[%emt 0:05:22]} 2. c4 {[%emt 0:00:47]} c5 {[%emt 0:00:51]} 3. Nf3 {[%emt 0:01:05]} cxd4 4. Nxd4 Nc6 {[%emt 0:01:09]} 5. Nc3 {[%emt 0:01:45]} g6 {[%emt 0:01:45]} 6. Nc2 {[%emt 0:01:10]} Bg7 {[%emt 0:00:15]} 7. e4 {[%emt 0:00:46]} d6 {[%emt 0:00:40]} 8. f3 {[%emt 0:00:19]} b6 {[%emt 0:06:34]} 9. Be3 {[%emt 0:01:42]} Bb7 {[%emt 0:00:25]} 10. Qd2 {[%emt 0:01:12]} h5 {[%emt 0:01:39]} 11. Be2 {[%emt 0:02:33]} Qd7 {[%emt 0:00:27]} 12. O-O {[%emt 0:03:40]} O-O {[%emt 0:05:58]} 13. Bh6 {[%emt 0:04:29]} Kh7 {[%emt 0:00:17]} 14. Bxg7 {[%emt 0:00:08]} Kxg7 15. Rfe1 Rac8 {[%emt 0:04:40]} 16. b3 {[%emt 0:02:14]} Rh8 {[%emt 0:08:56]} 17. Rad1 {[%emt 0:01:17]} Qe6 {[%emt 0:06:01]} 18. Nd4 {[%emt 0:12:39]} Nxd4 {[%emt 0:00:20]} 19. Qxd4 {[%emt 0:00:10]} Qe5 {[%emt 0:05:48]} 20. Qd2 {[%emt 0:14:42]} g5 {[%emt 0:05:15]} 21. Nd5 {[%emt 0:09:31]} 1/2-1/2

[Event "Czech Open-E Teams 2022"]
[Site "Pardubice"]
[Date "2022.07.16"]
[Round "5.40"]
[White "Kacirek, Pavel"]
[Black "Postupa, Martin"]
[Result "1-0"]
[ECO "D05"]
[WhiteElo "1859"]
[BlackElo "2023"]
[Annotator "ChessBase"]
[PlyCount "96"]
[EventDate "2022.07.14"]
[EventType "team-tourn"]
[EventCountry "CZE"]
[SourceTitle "playchess.com"]
[Source "ChessBase"]
[SourceQuality "1"]
[TimeControl "5400+30"]

1. d4 {[%emt 0:00:08]} d5 {[%emt 0:00:03]} 2. Nf3 {[%emt 0:01:50]} Nf6 {[%emt 0:00:28]} 3. e3 {[%emt 0:01:08]} e6 {[%emt 0:00:33]} 4. Be2 {[%emt 0:00:16]} Bb4+ {[%emt 0:02:33]} 5. c3 {[%emt 0:00:20]} Be7 {[%emt 0:00:17]} 6. b3 {[%emt 0:00:39]} O-O {[%emt 0:00:23]} 7. O-O {[%emt 0:00:16]} b6 {[%emt 0:01:09]} 8. Bb2 {[%emt 0:00:10]} c5 {[%emt 0:02:57]} 9. c4 {[%emt 0:00:22]} Bb7 {[%emt 0:01:26]} 10. Nc3 {[%emt 0:03:56]} Nbd7 {[%emt 0:01:43]} 11. cxd5 {[%emt 0:02:42]} exd5 {[%emt 0:01:20]} 12. dxc5 {[%emt 0:00:15]} bxc5 {[%emt 0:00:12]} 13. Rc1 {[%emt 0:02:41]} Rc8 {[%emt 0:01:18]} 14. Qd2 {[%emt 0:01:02]} h6 {[%emt 0:06:33]} 15. Rfd1 {[%emt 0:01:28]} Qb6 {[%emt 0:02:33]} 16. Na4 {[%emt 0:04:41]} Qe6 {[%emt 0:03:15]} 17. Qa5 {[%emt 0:12:50]} a6 {[%emt 0:06:08]} 18. h3 {[%emt 0:03:52]} Rc6 {[%emt 0:04:47]} 19. Qd2 {[%emt 0:04:56]} Rfc8 {[%emt 0:03:08]} 20. Nc3 {[%emt 0:00:09]} R6c7 {[%emt 0:01:59]} 21. Ba3 {[%emt 0:10:29]} Nb6 {[%emt 0:04:02]} 22. Bb2 {[%emt 0:10:56]} Bf8 {[%emt 0:02:53]} 23. Ba3 {[%emt 0:11:23]} Qe8 {[%emt 0:13:16]} 24. Bb2 {[%emt 0:01:03]} c4 {[%emt 0:05:54]} 25. Nd4 {[%emt 0:00:34]} cxb3 {[%emt 0:01:45]} 26. axb3 {[%emt 0:00:02]} Bb4 {[%emt 0:00:48]} 27. Qd3 {[%emt 0:00:33]} Nbd7 {[%emt 0:01:46]} 28. Na4 {[%emt 0:02:28]} Ne5 {[%emt 0:04:53]} 29. Qb1 {[%emt 0:02:46]} Bd6 {[%emt 0:02:52]} 30. Rxc7 {[%emt 0:00:14]} Rxc7 {[%emt 0:01:17]} 31. Rc1 {[%emt 0:00:05]} Ned7 {[%emt 0:05:04]} 32. Rxc7 {[%emt 0:02:48]} Bxc7 {[%emt 0:00:05]} 33. Qf5 {[%emt 0:00:45]} Bc8 {[%emt 0:01:21]} 34. Qc2 {[%emt 0:01:00]} Ba5 {[%emt 0:03:59]} 35. Nc6 {[%emt 0:01:49]} Bb6 {[%emt 0:03:07]} 36. Nxb6 {[%emt 0:00:06]} Nxb6 {[%emt 0:00:07]} 37. Bxf6 {[%emt 0:00:40]} gxf6 {[%emt 0:00:20]} 38. Nd4 {[%emt 0:00:09]} Qd8 {[%emt 0:03:26]} 39. Qc6 {[%emt 0:00:39]} Kg7 {[%emt 0:00:53]} 40. Bd3 {[%emt 0:00:30]} Kg8 {[%emt 0:02:11]} 41. b4 {[%emt 0:03:47]} Kg7 {[%emt 0:00:41]} 42. Bf5 {[%emt 0:02:16]} Bxf5 {[%emt 0:01:06]} 43. Nxf5+ {[%emt 0:00:02]} Kg6 {[%emt 0:00:16]} 44. Nd6 {[%emt 0:00:17]} Kg7 {[%emt 0:00:47]} 45. Nb7 {[%emt 0:00:10]} Qc8 {[%emt 0:02:59]} 46. Qxb6 {[%emt 0:00:00]} Qc3 47. Qd6 {[%emt 0:00:00]} Qe1+ {[%emt 0:02:42]} 48. Kh2 {[%emt 0:00:00]} Qxf2 {[%emt 0:00:35]} 1-0